[Event "FIDE World Rapid Chess Championship 2021"]
[White "Harsha, Bharathakoti"]
[Black "Artemiev, Vladislav"]
[WhiteFideId "5078776"]
[BlackFideId "24101605"]
[WhiteElo "2484"]
[BlackElo "2714"]
[Result "1/2-1/2"]
[Round "10"]
[TimeControl "900+10"]
[Date "2021.12.28"]
[WhiteClock "0:00:17"]
[BlackClock "0:00:28"]

1. e4 {[%clk 0:15:00]}  e5 {[%clk 0:14:59]} 2. Nf3 {[%clk 0:14:15]}  Nc6 {[%clk 0:14:59]} 3. Bb5 {[%clk 0:14:15]}  f5 {[%clk 0:14:59]} 4. d3 {[%clk 0:14:15]}  fxe4 {[%clk 0:14:59]} 5. dxe4 {[%clk 0:14:15]}  Nf6 {[%clk 0:14:59]} 6. O-O {[%clk 0:13:07]}  d6 {[%clk 0:14:09]} 7. Nc3 {[%clk 0:13:07]}  Be7 {[%clk 0:14:09]} 8. h3 {[%clk 0:13:07]}  O-O {[%clk 0:12:13]} 9. Be3 {[%clk 0:11:34]}  Kh8 {[%clk 0:12:13]} 10. Bc4 {[%clk 0:11:34]}  Qe8 {[%clk 0:11:58]} 11. Nd5 {[%clk 0:07:59]}  Qg6 {[%clk 0:09:59]} 12. Nxc7 {[%clk 0:06:42]}  Bxh3 {[%clk 0:07:27]} 13. Ng5 {[%clk 0:06:42]}  Rac8 {[%clk 0:04:57]} 14. Nce6 {[%clk 0:05:32]}  Bxe6 {[%clk 0:04:57]} 15. Bxe6 {[%clk 0:04:17]}  Nxe4 {[%clk 0:03:49]} 16. Bxc8 {[%clk 0:02:43]}  Nxg5 {[%clk 0:03:49]} 17. Bxg5 {[%clk 0:02:43]}  Bxg5 {[%clk 0:00:34]} 18. Bxb7 {[%clk 0:02:42]}  Nd4 {[%clk 0:00:34]} 19. c3 {[%clk 0:02:42]}  Nc2 {[%clk 0:00:34]} 20. Rc1 {[%clk 0:02:42]}  Ne3 {[%clk 0:00:34]} 21. Qe2 {[%clk 0:01:31]}  Nxf1 {[%clk 0:00:26]} 22. Rxf1 {[%clk 0:01:31]}  Qf7 {[%clk 0:00:26]} 23. Be4 {[%clk 0:01:31]}  d5 {[%clk 0:00:26]} 24. Bc2 {[%clk 0:01:31]}  Bf6 {[%clk 0:00:26]} 25. Rd1 {[%clk 0:01:31]}  Qb7 {[%clk 0:00:15]} 26. Qh5 {[%clk 0:00:17]}  g6 {[%clk 0:00:15]} 27. Bxg6 {[%clk 0:00:17]}  d4 {[%clk 0:00:15]} 28. Bf5 {[%clk 0:00:17]}  Rg8 {[%clk 0:00:09]} 29. g3 {[%clk 0:00:17]}  e4 {[%clk 0:00:09]} 30. cxd4 {[%clk 0:00:17]}  e3 {[%clk 0:00:09]} 31. Qe2 {[%clk 0:00:17]}  Qd5 {[%clk 0:00:09]} 32. Bh3 {[%clk 0:00:17]}  exf2+ {[%clk 0:00:09]} 33. Qxf2 {[%clk 0:00:17]}  Bd8 {[%clk 0:00:09]} 34. Rd3 {[%clk 0:00:17]}  Qxa2 {[%clk 0:00:09]} 35. Kh2 {[%clk 0:00:17]}  Qd5 {[%clk 0:00:09]} 36. Qf5 {[%clk 0:00:17]}  Qc6 {[%clk 0:00:09]} 37. Rc3 {[%clk 0:00:17]}  Qh6 {[%clk 0:00:09]} 38. Rf3 {[%clk 0:00:17]}  Qd2+ {[%clk 0:00:09]} 39. Bg2 {[%clk 0:00:17]}  Qxd4 {[%clk 0:00:09]} 40. Rd3 {[%clk 0:00:17]}  Qf6 {[%clk 0:00:09]} 41. Qxf6+ {[%clk 0:00:17]}  Bxf6 {[%clk 0:00:09]} 42. Rd7 {[%clk 0:00:17]}  Be5 {[%clk 0:00:09]} 43. Be4 {[%clk 0:00:17]}  Rxg3 {[%clk 0:00:09]} 44. Rxh7+ {[%clk 0:00:17]}  Kg8 {[%clk 0:00:09]} 45. Kh1 {[%clk 0:00:17]}  Re3 {[%clk 0:00:09]} 46. Bg6 {[%clk 0:00:17]}  Rg3 {[%clk 0:00:09]} 47. Be4 {[%clk 0:00:17]}  Rg4 {[%clk 0:00:09]} 48. Bf5 {[%clk 0:00:17]}  Rf4 {[%clk 0:00:19]} 49. Bg6 {[%clk 0:00:32]}  Bg7 {[%clk 0:00:19]} 50. Rh2 {[%clk 0:00:32]}  Rb4 {[%clk 0:00:19]} 51. Rc2 {[%clk 0:00:32]}  Bxb2 {[%clk 0:00:19]} 52. Rc8+ {[%clk 0:00:32]}  Kg7 {[%clk 0:00:19]} 53. Bd3 {[%clk 0:00:32]}  a5 {[%clk 0:00:19]} 54. Rc4 {[%clk 0:00:32]}  Rb3 {[%clk 0:00:19]} 55. Bc2 {[%clk 0:00:32]}  Rg3 {[%clk 0:00:19]} 56. Rc6 {[%clk 0:00:32]}  Kf7 {[%clk 0:00:19]} 57. Rc5 {[%clk 0:00:32]}  Bc3 {[%clk 0:00:19]} 58. Rd5 {[%clk 0:00:32]}  Bb4 {[%clk 0:00:19]} 59. Rd3 {[%clk 0:00:32]}  Rg5 {[%clk 0:00:19]} 60. Re3 {[%clk 0:00:32]}  Bc5 {[%clk 0:00:19]} 61. Re4 {[%clk 0:00:32]}  Kf6 {[%clk 0:00:19]} 62. Kh2 {[%clk 0:00:13]}  Bd6+ {[%clk 0:00:03]} 63. Kh1 {[%clk 0:00:13]}  Rg3 {[%clk 0:00:03]} 64. Re2 {[%clk 0:00:13]}  Be5 {[%clk 0:00:03]} 65. Rg2 {[%clk 0:00:13]}  Rc3 {[%clk 0:00:03]} 66. Kg1 {[%clk 0:00:13]}  Rc4 {[%clk 0:00:03]} 67. Kf1 {[%clk 0:00:13]}  a4 {[%clk 0:00:03]} 68. Bd3 {[%clk 0:00:13]}  Rb4 {[%clk 0:00:03]} 69. Rg6+ {[%clk 0:00:13]}  Ke7 {[%clk 0:00:03]} 70. Ra6 {[%clk 0:00:13]}  Bd6 {[%clk 0:00:03]} 71. Ke2 {[%clk 0:00:13]}  a3 {[%clk 0:00:03]} 72. Ke3 {[%clk 0:00:13]}  Bc5+ {[%clk 0:00:03]} 73. Kd2 {[%clk 0:00:13]}  Rb2+ {[%clk 0:00:03]} 74. Kc3 {[%clk 0:00:13]}  Bb4+ {[%clk 0:00:03]} 75. Kd4 {[%clk 0:00:28]}  Rd2 {[%clk 0:00:15]} 76. Kc4 {[%clk 0:00:28]}  Bd6 {[%clk 0:00:15]} 77. Kc3 {[%clk 0:00:28]}  Rb2 {[%clk 0:00:15]} 78. Bc4 {[%clk 0:00:28]}  Kd7 {[%clk 0:00:15]} 79. Ra7+ {[%clk 0:00:28]}  Kc6 {[%clk 0:00:15]} 80. Ra6+ {[%clk 0:00:28]}  Kc7 {[%clk 0:00:15]} 81. Ra7+ {[%clk 0:00:28]}  Kb8 {[%clk 0:00:15]} 82. Ra6 {[%clk 0:00:28]}  Bb4+ {[%clk 0:00:15]} 83. Kd4 {[%clk 0:00:28]}  Kb7 {[%clk 0:00:15]} 84. Ra4 {[%clk 0:00:28]}  Rd2+ {[%clk 0:00:15]} 85. Ke3 {[%clk 0:00:28]}  Rb2 {[%clk 0:00:15]} 86. Kd4 {[%clk 0:00:28]}  Be7 {[%clk 0:00:15]} 87. Kc3 {[%clk 0:00:28]}  Bc5 {[%clk 0:00:15]} 88. Kd3 {[%clk 0:00:51]}  Rh2 {[%clk 0:01:18]} 89. Ra5 {[%clk 0:00:51]}  Rh3+ {[%clk 0:01:18]} 90. Ke4 {[%clk 0:00:51]}  Kc6 {[%clk 0:01:18]} 91. Ra8 {[%clk 0:00:51]}  Re3+ {[%clk 0:01:18]} 92. Kf4 {[%clk 0:00:51]}  Rc3 {[%clk 0:01:18]} 93. Bg8 {[%clk 0:00:51]}  Kb5 {[%clk 0:00:35]} 94. Ke4 {[%clk 0:00:27]}  Bb6 {[%clk 0:00:35]} 95. Bf7 {[%clk 0:00:27]}  Re3+ {[%clk 0:00:35]} 96. Kf4 {[%clk 0:00:27]}  Re7 {[%clk 0:00:35]} 97. Bd5 {[%clk 0:00:27]}  Kc5 {[%clk 0:00:35]} 98. Bg8 {[%clk 0:00:27]}  Kb4 {[%clk 0:00:35]} 99. Ra6 {[%clk 0:00:27]}  Bc7+ {[%clk 0:00:35]} 100. Kf3 {[%clk 0:00:27]}  Re8 {[%clk 0:00:35]} 101. Bd5 {[%clk 0:00:27]}  Re5 {[%clk 0:00:35]} 102. Bg8 {[%clk 0:00:12]}  Rg5 {[%clk 0:00:30]} 103. Ba2 {[%clk 0:00:12]}  Rg3+ {[%clk 0:00:30]} 104. Ke4 {[%clk 0:00:12]}  Rg2 {[%clk 0:00:30]} 105. Bd5 {[%clk 0:00:12]}  Ba5 {[%clk 0:00:30]} 106. Rf6 {[%clk 0:00:12]}  Kc5 {[%clk 0:00:30]} 107. Rc6+ {[%clk 0:00:12]}  Kb5 {[%clk 0:00:30]} 108. Rc1 {[%clk 0:00:12]}  Re2+ {[%clk 0:00:30]} 109. Kd3 {[%clk 0:00:12]}  Rd2+ {[%clk 0:00:30]} 110. Ke4 {[%clk 0:00:12]}  Bb6 {[%clk 0:00:30]} 111. Rb1+ {[%clk 0:00:12]}  Ka5 {[%clk 0:00:30]} 112. Rc1 {[%clk 0:00:12]}  Ba7 {[%clk 0:00:48]} 113. Bg8 {[%clk 0:00:13]}  Rg2 {[%clk 0:00:48]} 114. Bd5 {[%clk 0:00:13]}  Rg4+ {[%clk 0:00:48]} 115. Kf5 {[%clk 0:00:13]}  Rh4 {[%clk 0:00:48]} 116. Rc2 {[%clk 0:00:13]}  Kb4 {[%clk 0:00:48]} 117. Rc7 {[%clk 0:00:13]}  Bc5 {[%clk 0:00:48]} 118. Rb7+ {[%clk 0:00:13]}  Kc3 {[%clk 0:00:48]} 119. Rc7 {[%clk 0:00:13]}  Kd4 {[%clk 0:00:48]} 120. Be6 {[%clk 0:00:13]}  Rh5+ {[%clk 0:00:19]} 121. Kg6 {[%clk 0:00:24]}  Re5 {[%clk 0:00:19]} 122. Rd7+ {[%clk 0:00:24]}  Kc3 {[%clk 0:00:19]} 123. Bf7 {[%clk 0:00:24]}  Re2 {[%clk 0:00:19]} 124. Rc7 {[%clk 0:00:24]}  Kd4 {[%clk 0:00:19]} 125. Rd7+ {[%clk 0:00:24]}  Ke4 {[%clk 0:00:19]} 126. Bd5+ {[%clk 0:00:24]}  Kf4 {[%clk 0:00:19]} 127. Rc7 {[%clk 0:00:24]}  Bd6 {[%clk 0:00:19]} 128. Ra7 {[%clk 0:00:24]}  Ke5 {[%clk 0:00:18]} 129. Bc4 {[%clk 0:00:15]}  Rc2 {[%clk 0:00:18]} 130. Bb3 {[%clk 0:00:15]}  Rg2+ {[%clk 0:00:18]} 131. Kf7 {[%clk 0:00:15]}  Bc5 {[%clk 0:00:18]} 132. Ra4 {[%clk 0:00:15]}  Rf2+ {[%clk 0:00:18]} 133. Ke8 {[%clk 0:00:15]}  Rb2 {[%clk 0:00:18]} 134. Bc4 {[%clk 0:00:15]}  Rf2 {[%clk 0:00:18]} 135. Kd7 {[%clk 0:00:15]}  Rf6 {[%clk 0:00:18]} 136. Ba2 {[%clk 0:00:15]}  Rb6 {[%clk 0:00:18]} 137. Kc7 {[%clk 0:00:15]}  Rb2 {[%clk 0:00:18]} 138. Bg8 {[%clk 0:00:14]}  Bb4 {[%clk 0:00:29]} 139. Kc6 {[%clk 0:00:14]}  Kd4 {[%clk 0:00:29]} 140. Ra8 {[%clk 0:00:14]}  Rg2 {[%clk 0:00:29]} 141. Bf7 {[%clk 0:00:14]}  Rg5 {[%clk 0:00:29]} 142. Rg8 {[%clk 0:00:14]}  Rc5+ {[%clk 0:00:29]} 143. Kb6 {[%clk 0:00:14]}  Ba5+ {[%clk 0:00:29]} 144. Ka6 {[%clk 0:00:14]}  Bc7 {[%clk 0:00:29]} 145. Kb7 {[%clk 0:00:14]}  Bd6 {[%clk 0:00:29]} 146. Rc8 {[%clk 0:00:14]}  Rf5 {[%clk 0:00:29]} 147. Bg8 {[%clk 0:00:14]}  Rg5 {[%clk 0:00:28]} 148. Be6 {[%clk 0:00:17]}  Rg6 {[%clk 0:00:28]} 1/2-1/2


[Site "http://www.Chess.com"]

[Event "FIDE World Rapid Chess Championship 2021"]
[White "Sargissian, Gabriel"]
[Black "Parligras, Mircea-Emilian"]
[WhiteFideId "13300881"]
[BlackFideId "1204297"]
[WhiteElo "2693"]
[BlackElo "2550"]
[Result "1-0"]
[Round "10"]
[TimeControl "900+10"]
[Date "2021.12.28"]
[WhiteClock "0:02:14"]
[BlackClock "0:00:22"]

1. d4 {[%clk 0:15:00]}  Nf6 {[%clk 0:15:00]} 2. c4 {[%clk 0:15:00]}  e6 {[%clk 0:15:00]} 3. Nc3 {[%clk 0:16:18]}  Bb4 {[%clk 0:15:33]} 4. e3 {[%clk 0:16:18]}  O-O {[%clk 0:15:33]} 5. Bd3 {[%clk 0:16:18]}  d5 {[%clk 0:15:33]} 6. a3 {[%clk 0:16:18]}  Bxc3+ {[%clk 0:15:33]} 7. bxc3 {[%clk 0:16:18]}  dxc4 {[%clk 0:15:33]} 8. Bxc4 {[%clk 0:16:18]}  c5 {[%clk 0:15:33]} 9. Nf3 {[%clk 0:16:18]}  Qc7 {[%clk 0:15:33]} 10. Be2 {[%clk 0:16:18]}  Nc6 {[%clk 0:15:33]} 11. O-O {[%clk 0:16:18]}  Rd8 {[%clk 0:15:33]} 12. Bb2 {[%clk 0:16:18]}  e5 {[%clk 0:15:33]} 13. Rc1 {[%clk 0:16:18]}  Bg4 {[%clk 0:15:33]} 14. h3 {[%clk 0:16:18]}  Bh5 {[%clk 0:15:33]} 15. Re1 {[%clk 0:15:08]}  Rac8 {[%clk 0:13:57]} 16. Qc2 {[%clk 0:10:44]}  e4 {[%clk 0:13:28]} 17. Nh2 {[%clk 0:10:44]}  Bxe2 {[%clk 0:13:28]} 18. Qxe2 {[%clk 0:10:44]}  Na5 {[%clk 0:13:35]} 19. c4 {[%clk 0:06:53]}  cxd4 {[%clk 0:13:35]} 20. Bxd4 {[%clk 0:06:53]}  Qc6 {[%clk 0:09:09]} 21. Rc3 {[%clk 0:06:53]}  Qe6 {[%clk 0:09:09]} 22. Rec1 {[%clk 0:05:28]}  Nc6 {[%clk 0:07:58]} 23. Rd1 {[%clk 0:05:28]}  b6 {[%clk 0:07:24]} 24. Nf1 {[%clk 0:04:44]}  Ne5 {[%clk 0:07:24]} 25. Ng3 {[%clk 0:04:44]}  Nxc4 {[%clk 0:05:47]} 26. Bxf6 {[%clk 0:03:50]}  Rxd1+ {[%clk 0:05:47]} 27. Qxd1 {[%clk 0:03:50]}  Qxf6 {[%clk 0:05:47]} 28. Nxe4 {[%clk 0:03:50]}  Qe6 {[%clk 0:05:47]} 29. Ng5 {[%clk 0:03:52]}  Qf6 {[%clk 0:03:37]} 30. Qg4 {[%clk 0:03:52]}  Qc6 {[%clk 0:00:22]} 31. Qf5 {[%clk 0:02:14]}  Rd8 {[%clk 0:00:22]} 32. Qxf7+ {[%clk 0:02:14]} 1-0


[Site "http://www.Chess.com"]

[Event "FIDE World Rapid Chess Championship 2021"]
[White "Demidov, Mikhail"]
[Black "Saric, Ivan"]
[WhiteFideId "4197143"]
[BlackFideId "14508150"]
[WhiteElo "2544"]
[BlackElo "2684"]
[Result "0-1"]
[Round "10"]
[TimeControl "900+10"]
[Date "2021.12.28"]
[WhiteClock "0:00:23"]
[BlackClock "0:05:01"]

1. d4 {[%clk 0:15:00]}  Nf6 {[%clk 0:15:00]} 2. Nc3 {[%clk 0:15:00]}  d5 {[%clk 0:14:49]} 3. Bf4 {[%clk 0:15:36]}  c6 {[%clk 0:14:49]} 4. e3 {[%clk 0:15:36]}  b5 {[%clk 0:14:49]} 5. Bd3 {[%clk 0:15:36]}  e6 {[%clk 0:14:49]} 6. Nf3 {[%clk 0:15:36]}  Nbd7 {[%clk 0:14:49]} 7. O-O {[%clk 0:15:36]}  Be7 {[%clk 0:14:49]} 8. a3 {[%clk 0:15:36]}  Nh5 {[%clk 0:14:49]} 9. Ne5 {[%clk 0:14:46]}  Nxf4 {[%clk 0:12:52]} 10. exf4 {[%clk 0:14:46]}  Nxe5 {[%clk 0:12:52]} 11. fxe5 {[%clk 0:14:46]}  Qb6 {[%clk 0:12:52]} 12. Ne2 {[%clk 0:14:46]}  c5 {[%clk 0:12:52]} 13. dxc5 {[%clk 0:14:10]}  Bxc5 {[%clk 0:12:17]} 14. b4 {[%clk 0:14:10]}  Be7 {[%clk 0:12:17]} 15. a4 {[%clk 0:14:10]}  bxa4 {[%clk 0:12:17]} 16. c3 {[%clk 0:14:10]}  Bd7 {[%clk 0:12:17]} 17. Bc2 {[%clk 0:14:10]}  O-O {[%clk 0:12:17]} 18. Qd3 {[%clk 0:14:22]}  g6 {[%clk 0:10:53]} 19. Bxa4 {[%clk 0:14:22]}  Bxa4 {[%clk 0:10:53]} 20. Rxa4 {[%clk 0:14:22]}  Qb8 {[%clk 0:10:53]} 21. f4 {[%clk 0:14:22]}  Bd8 {[%clk 0:10:53]} 22. Kh1 {[%clk 0:14:22]}  Bb6 {[%clk 0:10:53]} 23. h4 {[%clk 0:09:34]}  Qc7 {[%clk 0:11:01]} 24. b5 {[%clk 0:09:34]}  Rac8 {[%clk 0:11:01]} 25. h5 {[%clk 0:06:56]}  Qe7 {[%clk 0:10:35]} 26. g3 {[%clk 0:06:56]}  Rc7 {[%clk 0:10:25]} 27. Kg2 {[%clk 0:05:22]}  Rfc8 {[%clk 0:10:25]} 28. Rb1 {[%clk 0:05:22]}  Rc4 {[%clk 0:10:25]} 29. Rbb4 {[%clk 0:04:33]}  Qc5 {[%clk 0:08:57]} 30. Rxc4 {[%clk 0:03:29]}  Qf2+ {[%clk 0:06:54]} 31. Kh3 {[%clk 0:00:50]}  Qf1+ {[%clk 0:06:54]} 32. Kh2 {[%clk 0:00:50]}  dxc4 {[%clk 0:06:54]} 33. Rxc4 {[%clk 0:00:50]}  Rd8 {[%clk 0:06:54]} 34. Qe4 {[%clk 0:00:50]}  Rd2 {[%clk 0:06:54]} 35. Qa8+ {[%clk 0:00:23]}  Kg7 {[%clk 0:05:01]} 36. h6+ {[%clk 0:00:23]}  Kxh6 {[%clk 0:05:01]} 37. Qf8+ {[%clk 0:00:23]}  Kh5 {[%clk 0:05:01]} 38. g4+ {[%clk 0:00:23]}  Kxg4 {[%clk 0:05:01]} 39. f5+ {[%clk 0:00:23]}  Kh5 {[%clk 0:05:01]} 40. Rh4+ {[%clk 0:00:23]}  Kxh4 {[%clk 0:05:01]} 41. Qh6+ {[%clk 0:00:23]}  Kg4 {[%clk 0:05:01]} 42. Qxd2 {[%clk 0:00:23]}  Qh3# {[%clk 0:05:01]} 0-1


[Site "http://www.Chess.com"]

[Event "FIDE World Rapid Chess Championship 2021"]
[White "Sarana, Alexey"]
[Black "Gumularz, Szymon"]
[WhiteFideId "24133795"]
[BlackFideId "1188062"]
[WhiteElo "2680"]
[BlackElo "2452"]
[Result "1-0"]
[Round "10"]
[TimeControl "900+10"]
[Date "2021.12.28"]
[WhiteClock "0:01:36"]
[BlackClock "0:00:12"]

1. d4 {[%clk 0:15:00]}  e6 {[%clk 0:15:00]} 2. c4 {[%clk 0:15:00]}  b6 {[%clk 0:15:00]} 3. Nc3 {[%clk 0:15:25]}  Bb7 {[%clk 0:14:55]} 4. a3 {[%clk 0:15:25]}  Nf6 {[%clk 0:14:55]} 5. Nf3 {[%clk 0:15:25]}  g6 {[%clk 0:14:55]} 6. d5 {[%clk 0:15:25]}  Bg7 {[%clk 0:14:55]} 7. e4 {[%clk 0:15:25]}  O-O {[%clk 0:14:55]} 8. Bd3 {[%clk 0:15:25]}  exd5 {[%clk 0:14:55]} 9. cxd5 {[%clk 0:15:25]}  c6 {[%clk 0:14:55]} 10. d6 {[%clk 0:13:39]}  c5 {[%clk 0:14:14]} 11. O-O {[%clk 0:13:39]}  Nc6 {[%clk 0:14:14]} 12. h3 {[%clk 0:13:39]}  Nd4 {[%clk 0:13:29]} 13. Bg5 {[%clk 0:12:35]}  Qb8 {[%clk 0:13:29]} 14. Bf4 {[%clk 0:11:25]}  Nh5 {[%clk 0:10:39]} 15. Bh2 {[%clk 0:11:25]}  Nxf3+ {[%clk 0:10:39]} 16. Qxf3 {[%clk 0:11:25]}  f5 {[%clk 0:10:39]} 17. Bc4+ {[%clk 0:07:58]}  Kh8 {[%clk 0:10:31]} 18. Nd5 {[%clk 0:07:58]}  fxe4 {[%clk 0:10:31]} 19. Qxe4 {[%clk 0:07:58]}  Nf6 {[%clk 0:09:53]} 20. Qd3 {[%clk 0:06:17]}  b5 {[%clk 0:09:53]} 21. Nc7 {[%clk 0:06:17]}  Be4 {[%clk 0:09:53]} 22. Qe3 {[%clk 0:05:10]}  bxc4 {[%clk 0:08:19]} 23. Be5 {[%clk 0:05:10]}  Qb7 {[%clk 0:08:19]} 24. Nxa8 {[%clk 0:05:10]}  Rxa8 {[%clk 0:08:19]} 25. Rfe1 {[%clk 0:05:10]}  Bd5 {[%clk 0:06:45]} 26. Rad1 {[%clk 0:04:47]}  Be6 {[%clk 0:06:45]} 27. Qxc5 {[%clk 0:04:47]}  Rc8 {[%clk 0:06:45]} 28. Qd4 {[%clk 0:04:47]}  Rf8 {[%clk 0:06:45]} 29. Re3 {[%clk 0:04:47]}  Kg8 {[%clk 0:06:45]} 30. Rf3 {[%clk 0:04:55]}  Ne8 {[%clk 0:05:34]} 31. Rxf8+ {[%clk 0:04:55]}  Bxf8 {[%clk 0:05:34]} 32. Qf4 {[%clk 0:04:55]}  Qc6 {[%clk 0:05:34]} 33. h4 {[%clk 0:04:55]}  Ng7 {[%clk 0:04:36]} 34. Qf6 {[%clk 0:04:02]}  Qe4 {[%clk 0:04:36]} 35. f3 {[%clk 0:04:02]}  Qf5 {[%clk 0:04:36]} 36. g4 {[%clk 0:04:02]}  Qxf6 {[%clk 0:02:58]} 37. Bxf6 {[%clk 0:03:36]}  Ne8 {[%clk 0:02:58]} 38. Be5 {[%clk 0:03:36]}  Bg7 {[%clk 0:02:58]} 39. Bxg7 {[%clk 0:03:36]}  Kxg7 {[%clk 0:02:58]} 40. Kf2 {[%clk 0:03:36]}  Kf6 {[%clk 0:02:58]} 41. Ke3 {[%clk 0:03:36]}  h5 {[%clk 0:02:58]} 42. Kf4 {[%clk 0:03:36]}  Kf7 {[%clk 0:02:46]} 43. Rd4 {[%clk 0:01:01]}  Nf6 {[%clk 0:01:21]} 44. Kg5 {[%clk 0:01:01]}  Nh7+ {[%clk 0:01:21]} 45. Kh6 {[%clk 0:01:01]}  Nf6 {[%clk 0:01:21]} 46. Rf4 {[%clk 0:01:01]}  hxg4 {[%clk 0:01:21]} 47. Kg5 {[%clk 0:01:01]}  Bf5 {[%clk 0:01:21]} 48. fxg4 {[%clk 0:01:01]}  Nxg4 {[%clk 0:01:21]} 49. h5 {[%clk 0:01:01]}  Kg7 {[%clk 0:01:21]} 50. hxg6 {[%clk 0:01:01]}  Be6 {[%clk 0:01:21]} 51. Re4 {[%clk 0:01:01]}  Nf6 {[%clk 0:00:12]} 52. Re5 {[%clk 0:01:36]}  a6 {[%clk 0:00:12]} 53. a4 {[%clk 0:01:36]}  a5 {[%clk 0:00:12]} 54. Re3 {[%clk 0:01:36]}  c3 {[%clk 0:00:12]} 55. bxc3 {[%clk 0:01:36]} 1-0


[Site "http://www.Chess.com"]

[Event "FIDE World Rapid Chess Championship 2021"]
[White "Muradli, Mahammad"]
[Black "Demchenko, Anton"]
[WhiteFideId "13409301"]
[BlackFideId "4160258"]
[WhiteElo "2285"]
[BlackElo "2666"]
[Result "0-1"]
[Round "10"]
[TimeControl "900+10"]
[Date "2021.12.28"]
[WhiteClock "0:00:16"]
[BlackClock "0:00:34"]

1. c4 {[%clk 0:15:07]}  e5 {[%clk 0:14:16]} 2. d3 {[%clk 0:15:07]}  g6 {[%clk 0:14:16]} 3. g3 {[%clk 0:15:07]}  Bg7 {[%clk 0:14:16]} 4. Bg2 {[%clk 0:15:07]}  d6 {[%clk 0:14:16]} 5. Nc3 {[%clk 0:15:07]}  Nf6 {[%clk 0:14:16]} 6. Rb1 {[%clk 0:15:07]}  a5 {[%clk 0:14:16]} 7. a3 {[%clk 0:15:07]}  O-O {[%clk 0:14:16]} 8. Nf3 {[%clk 0:15:07]}  c6 {[%clk 0:14:16]} 9. O-O {[%clk 0:13:20]}  h6 {[%clk 0:14:10]} 10. c5 {[%clk 0:13:20]}  dxc5 {[%clk 0:14:10]} 11. Nxe5 {[%clk 0:13:20]}  Re8 {[%clk 0:14:10]} 12. Nc4 {[%clk 0:13:20]}  b5 {[%clk 0:12:44]} 13. Nd2 {[%clk 0:13:40]}  Nd5 {[%clk 0:12:44]} 14. Nce4 {[%clk 0:13:40]}  Na6 {[%clk 0:07:05]} 15. Qc2 {[%clk 0:13:21]}  Bf8 {[%clk 0:07:05]} 16. Nb3 {[%clk 0:13:21]}  Qb6 {[%clk 0:07:05]} 17. Bd2 {[%clk 0:12:52]}  a4 {[%clk 0:06:13]} 18. Nc1 {[%clk 0:12:52]}  Nac7 {[%clk 0:06:13]} 19. Nc3 {[%clk 0:06:52]}  Bb7 {[%clk 0:05:38]} 20. Kh1 {[%clk 0:05:39]}  Ne6 {[%clk 0:05:38]} 21. e3 {[%clk 0:05:39]}  Rad8 {[%clk 0:03:15]} 22. N1e2 {[%clk 0:04:46]}  Ba6 {[%clk 0:03:15]} 23. Rbd1 {[%clk 0:04:46]}  Ne7 {[%clk 0:01:11]} 24. Ne4 {[%clk 0:04:01]}  Nd5 {[%clk 0:01:11]} 25. N4c3 {[%clk 0:04:01]}  Ne7 {[%clk 0:01:11]} 26. Bc1 {[%clk 0:04:01]}  Bg7 {[%clk 0:01:11]} 27. h3 {[%clk 0:01:21]}  b4 {[%clk 0:01:36]} 28. axb4 {[%clk 0:01:21]}  cxb4 {[%clk 0:01:36]} 29. Nxa4 {[%clk 0:01:21]}  Qb5 {[%clk 0:01:36]} 30. b3 {[%clk 0:00:24]}  Rxd3 {[%clk 0:02:08]} 31. Rfe1 {[%clk 0:00:24]}  Rxd1 {[%clk 0:02:08]} 32. Qxd1 {[%clk 0:00:24]}  Rd8 {[%clk 0:02:08]} 33. Qc2 {[%clk 0:00:24]}  Qh5 {[%clk 0:02:08]} 34. Nf4 {[%clk 0:00:16]}  Nxf4 {[%clk 0:00:34]} 35. exf4 {[%clk 0:00:16]}  Bb5 {[%clk 0:00:34]} 36. Nb6 {[%clk 0:00:16]}  Nf5 {[%clk 0:00:34]} 37. Bb2 {[%clk 0:00:16]}  Bxb2 {[%clk 0:00:34]} 38. Qxb2 {[%clk 0:00:16]}  Rd1 {[%clk 0:00:34]} 39. Qe5 {[%clk 0:00:16]}  Nxg3+ {[%clk 0:00:34]} 40. Kh2 {[%clk 0:00:16]}  Qxe5 {[%clk 0:00:34]} 41. Rxe5 {[%clk 0:00:16]}  Nf5 {[%clk 0:00:34]} 42. Be4 {[%clk 0:00:16]}  Nd4 {[%clk 0:00:34]} 43. Re7 {[%clk 0:00:16]}  Re1 {[%clk 0:00:34]} 44. Nc8 {[%clk 0:00:16]}  Kf8 {[%clk 0:00:34]} 45. f3 {[%clk 0:00:16]}  Nxf3+ {[%clk 0:00:34]} 46. Kg3 {[%clk 0:00:16]}  Nd4 {[%clk 0:00:34]} 47. Rd7 {[%clk 0:00:16]}  Rxe4 {[%clk 0:00:34]} 48. Nd6 {[%clk 0:00:16]}  Nf5+ {[%clk 0:00:34]} 0-1


[Site "http://www.Chess.com"]